[Event "*** Titled Tuesday Blitz"]
[Site "Chess.com"]
[Date "2020.04.28"]
[Round "7"]
[White "Triumphmate"]
[Black "onnoelgersma"]
[Result "0-1"]
[WhiteElo "2494"]
[BlackElo "2301"]
[TimeControl "180+1"]
[EndTime "11:15:14 PDT"]
[Termination "onnoelgersma won by resignation"]

1. e4 {[%clk 0:03:00.9]} 1... c5 {[%clk 0:02:57.9]} 2. Nf3 {[%clk 0:03:01.8]}
2... e6 {[%clk 0:02:58.5]} 3. d4 {[%clk 0:03:02.3]} 3... cxd4 {[%clk 0:02:59.2]}
4. Nxd4 {[%clk 0:03:03.2]} 4... Nc6 {[%clk 0:02:59.6]} 5. Nc3 {[%clk 0:03:02]}
5... Nf6 {[%clk 0:02:59.9]} 6. f4 {[%clk 0:03:02.4]} 6... Bb4 {[%clk 0:02:41.6]}
7. Nxc6 {[%clk 0:03:02.1]} 7... bxc6 {[%clk 0:02:24]} 8. Bd3 {[%clk 0:03:02.4]}
8... d5 {[%clk 0:02:21.3]} 9. exd5 {[%clk 0:03:03.3]} 9... cxd5 {[%clk
0:02:21.3]} 10. O-O {[%clk 0:03:03.5]} 10... O-O {[%clk 0:02:21.4]} 11. Kh1
{[%clk 0:03:00.5]} 11... Bb7 {[%clk 0:02:19.4]} 12. Qe1 {[%clk 0:02:59.9]} 12...
d4 {[%clk 0:02:11.2]} 13. a3 {[%clk 0:02:57.3]} 13... Ba5 {[%clk 0:01:53.8]} 14.
b4 {[%clk 0:02:56.6]} 14... dxc3 {[%clk 0:01:52.2]} 15. bxa5 {[%clk 0:02:56.4]}
15... Qxa5 {[%clk 0:01:52.9]} 16. f5 {[%clk 0:02:55.9]} 16... Qd5 {[%clk
0:01:45.8]} 17. Qg3 {[%clk 0:02:54.7]} 17... exf5 {[%clk 0:01:25.5]} 18. Bg5
{[%clk 0:02:54]} 18... Ne4 {[%clk 0:01:09.4]} 19. Bxe4 {[%clk 0:02:53.6]} 19...
Qxe4 {[%clk 0:01:10.3]} 20. Bf6 {[%clk 0:02:53.6]} 20... Qg4 {[%clk 0:01:10.8]}
21. Qxg4 {[%clk 0:02:50.7]} 21... fxg4 {[%clk 0:01:11.7]} 22. Bxc3 {[%clk
0:02:51.6]} 22... Rac8 {[%clk 0:01:11.6]} 23. Rab1 {[%clk 0:02:48.3]} 23... Ba8
{[%clk 0:01:10.9]} 24. Bb4 {[%clk 0:02:46.2]} 24... Rfe8 {[%clk 0:01:04.5]} 25.
Rbc1 {[%clk 0:02:45.9]} 25... Re2 {[%clk 0:01:04.7]} 26. Rg1 {[%clk 0:02:44.3]}
26... Rcxc2 {[%clk 0:01:04.6]} 27. Rcd1 {[%clk 0:02:43.9]} 27... Re8 {[%clk
0:01:00.2]} 28. Rd7 {[%clk 0:02:37.7]} 28... h5 {[%clk 0:00:59.3]} 29. Rxa7
{[%clk 0:02:36.5]} 29... h4 {[%clk 0:00:59.8]} 30. h3 {[%clk 0:02:30.7]} 30...
gxh3 {[%clk 0:00:57.2]} 31. Rxa8 {[%clk 0:02:30.8]} 31... Rxa8 {[%clk
0:00:52.9]} 32. gxh3 {[%clk 0:02:31.7]} 32... Re8 {[%clk 0:00:51.5]} 0-1

[Event "*** Titled Tuesday Blitz"]
[Site "Chess.com"]
[Date "2020.04.28"]
[Round "7"]
[White "Natalya_Buksa"]
[Black "dcann0n88"]
[Result "1-0"]
[WhiteElo "2520"]
[BlackElo "2392"]
[TimeControl "180+1"]
[EndTime "11:15:26 PDT"]
[Termination "Natalya_Buksa won by resignation"]

1. d4 {[%clk 0:03:00.9]} 1... Nf6 {[%clk 0:02:59.5]} 2. Nc3 {[%clk 0:03:01.2]}
2... g6 {[%clk 0:02:59.9]} 3. e4 {[%clk 0:02:57]} 3... d6 {[%clk 0:02:59.2]} 4.
f4 {[%clk 0:02:57.3]} 4... Bg7 {[%clk 0:02:58.6]} 5. Nf3 {[%clk 0:02:57.7]} 5...
O-O {[%clk 0:02:58.2]} 6. Bd3 {[%clk 0:02:58.2]} 6... Na6 {[%clk 0:02:58.1]} 7.
O-O {[%clk 0:02:58.3]} 7... c5 {[%clk 0:02:55.3]} 8. d5 {[%clk 0:02:58.5]} 8...
e6 {[%clk 0:02:40.4]} 9. Qe1 {[%clk 0:02:53.6]} 9... Nb4 {[%clk 0:02:37.8]} 10.
dxe6 {[%clk 0:02:52.2]} 10... Bxe6 {[%clk 0:02:33.4]} 11. a3 {[%clk 0:02:51.3]}
11... Nxd3 {[%clk 0:02:33.4]} 12. cxd3 {[%clk 0:02:52.2]} 12... d5 {[%clk
0:02:21.6]} 13. Qh4 {[%clk 0:02:47.7]} 13... dxe4 {[%clk 0:02:20]} 14. dxe4
{[%clk 0:02:47.4]} 14... Bc4 {[%clk 0:01:22.3]} 15. Rd1 {[%clk 0:02:44.2]} 15...
Qc7 {[%clk 0:01:14.5]} 16. e5 {[%clk 0:02:40.5]} 16... Nd7 {[%clk 0:01:02.1]}
17. Ng5 {[%clk 0:02:40.3]} 17... h6 {[%clk 0:00:59.5]} 18. Nge4 {[%clk
0:02:39.2]} 18... Rad8 {[%clk 0:00:54.4]} 19. Be3 {[%clk 0:02:38.4]} 19... Be6
{[%clk 0:00:41.5]} 20. Rf1 {[%clk 0:02:19.7]} 20... Nb6 {[%clk 0:00:30.3]} 21.
Nf6+ {[%clk 0:02:18]} 21... Bxf6 {[%clk 0:00:27.8]} 22. exf6 {[%clk 0:02:18.9]}
22... Kh7 {[%clk 0:00:24.2]} 23. f5 {[%clk 0:02:19.3]} 1-0

[Event "*** Titled Tuesday Blitz"]
[Site "Chess.com"]
[Date "2020.04.28"]
[Round "7"]
[White "MikaelyanArman"]
[Black "Jeffinho023"]
[Result "1-0"]
[WhiteElo "2752"]
[BlackElo "2559"]
[TimeControl "180+1"]
[EndTime "11:15:28 PDT"]
[Termination "MikaelyanArman won by resignation"]

1. e4 {[%clk 0:03:00.9]} 1... e5 {[%clk 0:02:57.5]} 2. Nf3 {[%clk 0:03:00.8]}
2... Nf6 {[%clk 0:02:57.6]} 3. Nc3 {[%clk 0:03:00.7]} 3... Nc6 {[%clk
0:02:57.4]} 4. Be2 {[%clk 0:03:00.8]} 4... Bc5 {[%clk 0:02:57]} 5. Nxe5 {[%clk
0:03:00.5]} 5... Nxe5 {[%clk 0:02:55.8]} 6. d4 {[%clk 0:03:00.6]} 6... Bd6
{[%clk 0:02:56.4]} 7. dxe5 {[%clk 0:03:00.6]} 7... Bxe5 {[%clk 0:02:57.3]} 8.
Nb5 {[%clk 0:03:01]} 8... c6 {[%clk 0:02:46.9]} 9. Nd6+ {[%clk 0:02:57.2]} 9...
Bxd6 {[%clk 0:02:45.4]} 10. Qxd6 {[%clk 0:02:58.1]} 10... Qe7 {[%clk 0:02:41.1]}
11. e5 {[%clk 0:02:43.3]} 11... Qxd6 {[%clk 0:02:39.4]} 12. exd6 {[%clk
0:02:44.2]} 12... O-O {[%clk 0:02:36.4]} 13. O-O {[%clk 0:02:35.5]} 13... Re8
{[%clk 0:02:35.4]} 14. Bf3 {[%clk 0:02:20.8]} 14... b6 {[%clk 0:02:34.3]} 15.
Bf4 {[%clk 0:02:17.4]} 15... Ba6 {[%clk 0:02:33.4]} 16. Rfe1 {[%clk 0:02:17.7]}
16... Rxe1+ {[%clk 0:02:33.1]} 17. Rxe1 {[%clk 0:02:18.6]} 17... Re8 {[%clk
0:02:33.4]} 18. Rxe8+ {[%clk 0:02:05.9]} 18... Nxe8 {[%clk 0:02:34.3]} 19. Bxc6
{[%clk 0:02:05.9]} 19... Nxd6 {[%clk 0:02:21.9]} 20. Bxd7 {[%clk 0:02:05.9]}
20... Nc4 {[%clk 0:01:54.5]} 21. b3 {[%clk 0:02:04.1]} 21... Na3 {[%clk
0:01:54]} 22. c4 {[%clk 0:02:02.7]} 22... Bb7 {[%clk 0:01:42]} 23. Bf5 {[%clk
0:01:59.6]} 1-0

[Event "*** Titled Tuesday Blitz"]
[Site "Chess.com"]
[Date "2020.04.28"]
[Round "7"]
[White "semchik73"]
[Black "CraiggoryC"]
[Result "1-0"]
[WhiteElo "2225"]
[BlackElo "2061"]
[TimeControl "180+1"]
[EndTime "11:15:32 PDT"]
[Termination "semchik73 won by resignation"]

1. Nf3 {[%clk 0:03:00]} 1... Nf6 {[%clk 0:02:59.3]} 2. c4 {[%clk 0:03:00.5]}
2... c6 {[%clk 0:02:57.5]} 3. Nc3 {[%clk 0:03:00.7]} 3... d5 {[%clk 0:02:58]} 4.
e3 {[%clk 0:03:01.3]} 4... Bg4 {[%clk 0:02:55.1]} 5. cxd5 {[%clk 0:02:59.2]}
5... cxd5 {[%clk 0:02:54.6]} 6. Qb3 {[%clk 0:02:59.3]} 6... Bxf3 {[%clk
0:02:48.9]} 7. Qxb7 {[%clk 0:02:58.4]} 7... Nbd7 {[%clk 0:02:41.9]} 8. gxf3
{[%clk 0:02:58.9]} 8... e6 {[%clk 0:02:30]} 9. Nb5 {[%clk 0:02:58]} 9... Rb8
{[%clk 0:02:13.9]} 10. Nc7+ {[%clk 0:02:48.7]} 10... Ke7 {[%clk 0:02:13.5]} 11.
Qxa7 {[%clk 0:02:48.7]} 11... Qc8 {[%clk 0:01:12.7]} 12. Ba6 {[%clk 0:02:37.6]}
12... Qd8 {[%clk 0:00:56.6]} 13. b3 {[%clk 0:02:37.7]} 13... Ne8 {[%clk
0:00:48.3]} 14. Ba3+ {[%clk 0:02:20.7]} 14... Nd6 {[%clk 0:00:28]} 15. Nb5
{[%clk 0:02:14.1]} 15... Rxb5 {[%clk 0:00:26.5]} 16. Bxb5 {[%clk 0:02:13.4]}
16... Ke8 {[%clk 0:00:14]} 17. Qxd7+ {[%clk 0:02:05.8]} 1-0

[Event "*** Titled Tuesday Blitz"]
[Site "Chess.com"]
[Date "2020.04.28"]
[Round "7"]
[White "r31415"]
[Black "Frogo47"]
[Result "0-1"]
[WhiteElo "2346"]
[BlackElo "2489"]
[TimeControl "180+1"]
[EndTime "11:15:33 PDT"]
[Termination "Frogo47 won by resignation"]

1. e4 {[%clk 0:03:00.9]} 1... e5 {[%clk 0:02:59.3]} 2. Nf3 {[%clk 0:03:01]} 2...
Nc6 {[%clk 0:02:59.5]} 3. Bc4 {[%clk 0:03:01.5]} 3... Nf6 {[%clk 0:02:59]} 4. d3
{[%clk 0:03:01.1]} 4... h6 {[%clk 0:02:59.2]} 5. c3 {[%clk 0:03:00.9]} 5... Bc5
{[%clk 0:02:59.3]} 6. O-O {[%clk 0:03:00.5]} 6... d6 {[%clk 0:02:59.6]} 7. d4
{[%clk 0:02:57.7]} 7... Bb6 {[%clk 0:02:59.7]} 8. dxe5 {[%clk 0:02:56]} 8...
Nxe5 {[%clk 0:02:59.8]} 9. Nxe5 {[%clk 0:02:55.3]} 9... dxe5 {[%clk 0:03:00]}
10. Qxd8+ {[%clk 0:02:54.8]} 10... Kxd8 {[%clk 0:03:00.2]} 11. Bxf7 {[%clk
0:02:55.7]} 11... Rf8 {[%clk 0:02:54.2]} 12. Bg6 {[%clk 0:02:37.4]} 12... Ng4
{[%clk 0:02:49.9]} 13. Bf5 {[%clk 0:01:25.6]} 13... Nxf2 {[%clk 0:02:14.4]} 14.
Rxf2 {[%clk 0:01:08.4]} 14... Bxf5 {[%clk 0:02:00.8]} 15. Nd2 {[%clk 0:00:49.7]}
15... Bg4 {[%clk 0:01:42.7]} 16. Nf3 {[%clk 0:00:39.2]} 16... Bxf3 {[%clk
0:01:41.8]} 0-1

[Event "*** Titled Tuesday Blitz"]
[Site "Chess.com"]
[Date "2020.04.28"]
[Round "7"]
[White "Saloni1299"]
[Black "LizaSolovyova"]
[Result "1/2-1/2"]
[WhiteElo "2342"]
[BlackElo "2538"]
[TimeControl "180+1"]
[EndTime "11:15:34 PDT"]
[Termination "Game drawn by repetition"]

1. e4 {[%clk 0:03:00.9]} 1... e5 {[%clk 0:02:59]} 2. Nf3 {[%clk 0:03:00.7]} 2...
d6 {[%clk 0:02:59.2]} 3. d4 {[%clk 0:02:59.6]} 3... Qe7 {[%clk 0:02:59.2]} 4.
Nc3 {[%clk 0:02:59.4]} 4... c6 {[%clk 0:02:59.9]} 5. Bd3 {[%clk 0:02:58.6]} 5...
h6 {[%clk 0:03:00.8]} 6. O-O {[%clk 0:02:57]} 6... Nf6 {[%clk 0:03:01.7]} 7. a3
{[%clk 0:02:49.7]} 7... Bg4 {[%clk 0:02:57.1]} 8. Be3 {[%clk 0:02:47.3]} 8...
Qc7 {[%clk 0:02:46.5]} 9. h3 {[%clk 0:02:47.3]} 9... Bh5 {[%clk 0:02:46.3]} 10.
Be2 {[%clk 0:02:41.3]} 10... g5 {[%clk 0:02:41.8]} 11. Nh2 {[%clk 0:02:34.9]}
11... Bg6 {[%clk 0:02:40.9]} 12. Ng4 {[%clk 0:02:31.2]} 12... Nbd7 {[%clk
0:02:40.1]} 13. Nxf6+ {[%clk 0:02:22]} 13... Nxf6 {[%clk 0:02:39.4]} 14. f3
{[%clk 0:02:22.6]} 14... Be7 {[%clk 0:02:30.5]} 15. Qe1 {[%clk 0:02:22]} 15...
Nh5 {[%clk 0:02:29.1]} 16. g3 {[%clk 0:02:12.6]} 16... Ng7 {[%clk 0:02:20.9]}
17. Qf2 {[%clk 0:01:53.2]} 17... f5 {[%clk 0:02:14.6]} 18. dxe5 {[%clk
0:01:52.7]} 18... dxe5 {[%clk 0:02:14.2]} 19. Bxa7 {[%clk 0:01:52.3]} 19... f4
{[%clk 0:01:44.1]} 20. Bb6 {[%clk 0:01:46.2]} 20... Qc8 {[%clk 0:01:38.8]} 21.
g4 {[%clk 0:01:42.8]} 21... Bf7 {[%clk 0:01:28.5]} 22. Kg2 {[%clk 0:01:40.7]}
22... Be6 {[%clk 0:01:22.3]} 23. Bc5 {[%clk 0:01:38.9]} 23... Qc7 {[%clk
0:01:15.4]} 24. Bb6 {[%clk 0:01:38.1]} 24... Qc8 {[%clk 0:01:14.8]} 25. Bc5
{[%clk 0:01:38.3]} 25... Qc7 {[%clk 0:01:13.1]} 26. Bb6 {[%clk 0:01:38.4]} 26...
Qc8 {[%clk 0:01:13.1]} 1/2-1/2

[Event "*** Titled Tuesday Blitz"]
[Site "Chess.com"]
[Date "2020.04.28"]
[Round "7"]
[White "1f3_2g41-0"]
[Black "NIGWAPO"]
[Result "1-0"]
[WhiteElo "2256"]
[BlackElo "2585"]
[TimeControl "180+1"]
[EndTime "11:15:40 PDT"]
[Termination "1f3_2g41-0 won by resignation"]

1. e4 {[%clk 0:02:58.2]} 1... g5 {[%clk 0:03:00.1]} 2. d4 {[%clk 0:02:57.3]}
2... d5 {[%clk 0:03:00.7]} 3. exd5 {[%clk 0:02:53.4]} 3... Qxd5 {[%clk
0:03:00.5]} 4. Nc3 {[%clk 0:02:52.1]} 4... Qe6+ {[%clk 0:03:00.6]} 5. Be2 {[%clk
0:02:49.7]} 5... h6 {[%clk 0:03:00.3]} 6. Be3 {[%clk 0:02:43.8]} 6... c6 {[%clk
0:03:00.1]} 7. d5 {[%clk 0:02:42.6]} 7... cxd5 {[%clk 0:02:58.9]} 8. Nxd5 {[%clk
0:02:42.7]} 8... Qd6 {[%clk 0:02:58.6]} 9. c4 {[%clk 0:02:36.7]} 9... Be6 {[%clk
0:02:56.8]} 10. Bd4 {[%clk 0:02:24.1]} 10... Bxd5 {[%clk 0:02:56.8]} 11. cxd5
{[%clk 0:01:58.6]} 11... Nf6 {[%clk 0:02:56.7]} 12. Nf3 {[%clk 0:01:57.1]} 12...
Bg7 {[%clk 0:02:56]} 13. O-O {[%clk 0:01:56.9]} 13... Nbd7 {[%clk 0:02:55.6]}
14. Rc1 {[%clk 0:01:51.3]} 14... O-O {[%clk 0:02:55]} 15. Bc4 {[%clk 0:01:47.7]}
15... a6 {[%clk 0:02:53.5]} 16. Bb3 {[%clk 0:01:45.2]} 16... Rac8 {[%clk
0:02:52.9]} 17. Bc3 {[%clk 0:01:37.5]} 17... Nc5 {[%clk 0:02:51.9]} 18. Be5
{[%clk 0:01:30.9]} 18... Qd7 {[%clk 0:02:49]} 19. Qd4 {[%clk 0:01:11.9]} 19...
Nxb3 {[%clk 0:02:43.5]} 20. axb3 {[%clk 0:01:12.8]} 20... Rfd8 {[%clk
0:02:40.2]} 21. Rxc8 {[%clk 0:01:10.1]} 21... Rxc8 {[%clk 0:02:40.3]} 22. Rd1
{[%clk 0:01:10.4]} 22... Ne8 {[%clk 0:02:32.7]} 23. Bxg7 {[%clk 0:01:09.5]}
23... Nxg7 {[%clk 0:02:33.3]} 24. Ne5 {[%clk 0:01:09.9]} 24... Qb5 {[%clk
0:02:31.9]} 25. Ng4 {[%clk 0:00:57.4]} 25... Qxb3 {[%clk 0:02:30.5]} 26. Nxh6+
{[%clk 0:00:57.4]} 26... Kh7 {[%clk 0:02:29.8]} 27. Nxf7 {[%clk 0:00:55.7]}
27... Nf5 {[%clk 0:02:26.1]} 28. Qg4 {[%clk 0:00:45.4]} 28... Rc4 {[%clk
0:02:17.8]} 29. Qxf5+ {[%clk 0:00:44.1]} 29... Kg7 {[%clk 0:02:17.2]} 30. Rf1
{[%clk 0:00:33.9]} 30... Qxb2 {[%clk 0:02:16.2]} 31. Ne5 {[%clk 0:00:30.6]}
31... Rf4 {[%clk 0:02:15.4]} 32. Qxg5+ {[%clk 0:00:30.6]} 1-0

[Event "*** Titled Tuesday Blitz"]
[Site "Chess.com"]
[Date "2020.04.28"]
[Round "7"]
[White "Moon_stone123"]
[Black "kosmeg"]
[Result "1-0"]
[WhiteElo "2514"]
[BlackElo "2386"]
[TimeControl "180+1"]
[EndTime "11:15:40 PDT"]
[Termination "Moon_stone123 won by resignation"]

1. Nf3 {[%clk 0:03:00.9]} 1... d5 {[%clk 0:02:59.2]} 2. g3 {[%clk 0:03:00.5]}
2... c6 {[%clk 0:02:59.7]} 3. Bg2 {[%clk 0:02:59.5]} 3... Bg4 {[%clk 0:03:00.1]}
4. O-O {[%clk 0:02:58.8]} 4... e6 {[%clk 0:03:00.5]} 5. d3 {[%clk 0:02:57.5]}
5... Nf6 {[%clk 0:03:00.1]} 6. Nbd2 {[%clk 0:02:57.6]} 6... Be7 {[%clk
0:03:00.4]} 7. c4 {[%clk 0:02:57.1]} 7... O-O {[%clk 0:03:00.1]} 8. b3 {[%clk
0:02:56.6]} 8... a5 {[%clk 0:02:59.4]} 9. a3 {[%clk 0:02:55.4]} 9... Na6 {[%clk
0:02:59.7]} 10. Bb2 {[%clk 0:02:54.9]} 10... Re8 {[%clk 0:02:59.4]} 11. Ne5
{[%clk 0:02:52]} 11... Bh5 {[%clk 0:02:59.2]} 12. Ndf3 {[%clk 0:02:51.8]} 12...
Nd7 {[%clk 0:02:53.5]} 13. Nxd7 {[%clk 0:02:49.1]} 13... Qxd7 {[%clk 0:02:53.6]}
14. Ne5 {[%clk 0:02:49.7]} 14... Qc7 {[%clk 0:02:51.5]} 15. f4 {[%clk
0:02:46.2]} 15... Nc5 {[%clk 0:02:42]} 16. cxd5 {[%clk 0:02:29.4]} 16... exd5
{[%clk 0:02:40.6]} 17. g4 {[%clk 0:02:25.2]} 17... f6 {[%clk 0:02:34.2]} 18.
gxh5 {[%clk 0:02:22.6]} 18... fxe5 {[%clk 0:02:33.4]} 19. Bxe5 {[%clk
0:02:21.7]} 19... Bd6 {[%clk 0:02:33.9]} 20. d4 {[%clk 0:02:21.2]} 20... Ne6
{[%clk 0:02:24.2]} 21. e3 {[%clk 0:02:21.2]} 21... Bxe5 {[%clk 0:02:24.3]} 22.
fxe5 {[%clk 0:02:19.2]} 22... Rf8 {[%clk 0:02:18.7]} 23. Qg4 {[%clk 0:02:17.8]}
23... Qe7 {[%clk 0:02:18.7]} 24. h6 {[%clk 0:02:12.9]} 24... g6 {[%clk
0:02:16.3]} 25. h4 {[%clk 0:02:09.4]} 25... Kh8 {[%clk 0:02:14.3]} 26. Bh3
{[%clk 0:02:05.7]} 26... Nc7 {[%clk 0:01:58.1]} 27. Qg5 {[%clk 0:02:05.1]} 27...
Qxg5+ {[%clk 0:01:39]} 28. hxg5 {[%clk 0:02:04.5]} 28... Rxf1+ {[%clk
0:01:39.9]} 29. Rxf1 {[%clk 0:02:00.6]} 29... Kg8 {[%clk 0:01:40.8]} 30. Rf6
{[%clk 0:01:56.7]} 30... Rf8 {[%clk 0:01:35.9]} 31. Rd6 {[%clk 0:01:53.1]} 31...
Nb5 {[%clk 0:01:29.2]} 32. Rd7 {[%clk 0:01:52.4]} 32... Nxa3 {[%clk 0:01:21.3]}
33. Be6+ {[%clk 0:01:51.9]} 33... Kh8 {[%clk 0:01:21.1]} 34. Bf7 {[%clk
0:01:51.3]} 1-0

[Event "*** Titled Tuesday Blitz"]
[Site "Chess.com"]
[Date "2020.04.28"]
[Round "7"]
[White "Diego_FloresQ"]
[Black "jguerramzllo"]
[Result "0-1"]
[WhiteElo "2417"]
[BlackElo "2604"]
[TimeControl "180+1"]
[EndTime "11:15:41 PDT"]
[Termination "jguerramzllo won by resignation"]

1. e4 {[%clk 0:03:00.2]} 1... e5 {[%clk 0:02:59.3]} 2. Nf3 {[%clk 0:02:56.8]}
2... Nc6 {[%clk 0:02:59.1]} 3. Bb5 {[%clk 0:02:54]} 3... Nf6 {[%clk 0:02:57.8]}
4. O-O {[%clk 0:02:52.5]} 4... Nxe4 {[%clk 0:02:55.6]} 5. d4 {[%clk 0:02:49.5]}
5... Nd6 {[%clk 0:02:52.3]} 6. dxe5 {[%clk 0:02:48.4]} 6... Nxb5 {[%clk
0:02:51.4]} 7. a4 {[%clk 0:02:48.4]} 7... d6 {[%clk 0:02:17.9]} 8. e6 {[%clk
0:02:44]} 8... Bxe6 {[%clk 0:02:07]} 9. axb5 {[%clk 0:02:35.4]} 9... Ne5 {[%clk
0:02:05.3]} 10. Ng5 {[%clk 0:02:29]} 10... Be7 {[%clk 0:01:54.5]} 11. Nxe6
{[%clk 0:02:20.5]} 11... fxe6 {[%clk 0:01:55.4]} 12. Qe2 {[%clk 0:02:12]} 12...
O-O {[%clk 0:01:34.2]} 13. f4 {[%clk 0:02:10.8]} 13... Nf7 {[%clk 0:01:34.5]}
14. Qxe6 {[%clk 0:02:08.5]} 14... Bf6 {[%clk 0:01:35.1]} 15. Nc3 {[%clk
0:01:59.2]} 15... c6 {[%clk 0:01:29.4]} 16. bxc6 {[%clk 0:01:59.1]} 16... bxc6
{[%clk 0:01:29.1]} 17. Qh3 {[%clk 0:01:59.3]} 17... Qb6+ {[%clk 0:01:14.6]} 18.
Kh1 {[%clk 0:01:57.3]} 18... Rfe8 {[%clk 0:01:14.2]} 19. Bd2 {[%clk 0:01:48.3]}
19... Qxb2 {[%clk 0:01:08.3]} 20. Rfb1 {[%clk 0:01:27.7]} 20... Qxc2 {[%clk
0:01:06.8]} 0-1

[Event "*** Titled Tuesday Blitz"]
[Site "Chess.com"]
[Date "2020.04.28"]
[Round "7"]
[White "Chepaschess"]
[Black "Tapuah"]
[Result "0-1"]
[WhiteElo "2663"]
[BlackElo "2841"]
[TimeControl "180+1"]
[EndTime "11:15:44 PDT"]
[Termination "Tapuah won by resignation"]

1. d4 {[%clk 0:03:00.9]} 1... Nf6 {[%clk 0:02:59]} 2. c4 {[%clk 0:03:00.4]} 2...
g6 {[%clk 0:02:59.6]} 3. Nc3 {[%clk 0:03:01.1]} 3... Bg7 {[%clk 0:03:00]} 4. e4
{[%clk 0:03:01.8]} 4... d6 {[%clk 0:03:00.5]} 5. h3 {[%clk 0:03:02.4]} 5... Nbd7
{[%clk 0:02:59.7]} 6. Be3 {[%clk 0:02:57.3]} 6... e5 {[%clk 0:02:58.8]} 7. d5
{[%clk 0:02:52.9]} 7... Nc5 {[%clk 0:02:58.6]} 8. Qc2 {[%clk 0:02:53.4]} 8... h5
{[%clk 0:02:57]} 9. Nf3 {[%clk 0:02:43.3]} 9... a5 {[%clk 0:02:54.8]} 10. Be2
{[%clk 0:02:33.4]} 10... Qe7 {[%clk 0:02:50.7]} 11. Ng5 {[%clk 0:02:21.2]} 11...
Bd7 {[%clk 0:02:45.1]} 12. O-O-O {[%clk 0:02:13.4]} 12... O-O {[%clk 0:02:31]}
13. g4 {[%clk 0:02:06.3]} 13... h4 {[%clk 0:02:26]} 14. Nf3 {[%clk 0:01:56.6]}
14... c6 {[%clk 0:02:25.6]} 15. Kb1 {[%clk 0:01:54.2]} 15... Rfc8 {[%clk
0:02:23.1]} 16. Bg5 {[%clk 0:01:50.1]} 16... Qe8 {[%clk 0:02:18.1]} 17. Nxh4
{[%clk 0:01:45.8]} 17... cxd5 {[%clk 0:02:15.3]} 18. exd5 {[%clk 0:01:45.5]}
18... b5 {[%clk 0:02:11.4]} 19. cxb5 {[%clk 0:01:14.9]} 19... Nce4 {[%clk
0:02:02.1]} 20. Bd2 {[%clk 0:01:04]} 20... Nxf2 {[%clk 0:01:56.1]} 21. g5 {[%clk
0:01:01.3]} 21... Nxd5 {[%clk 0:01:48.5]} 22. Bf3 {[%clk 0:00:53.6]} 22... e4
{[%clk 0:01:41.5]} 0-1

[Event "*** Titled Tuesday Blitz"]
[Site "Chess.com"]
[Date "2020.04.28"]
[Round "7"]
[White "Baby_Shak"]
[Black "Gyapiking"]
[Result "1-0"]
[WhiteElo "2370"]
[BlackElo "2480"]
[TimeControl "180+1"]
[EndTime "11:15:59 PDT"]
[Termination "Baby_Shak won by resignation"]

1. d4 {[%clk 0:03:00.9]} 1... d6 {[%clk 0:02:58.7]} 2. Nc3 {[%clk 0:03:00.7]}
2... g6 {[%clk 0:02:55.2]} 3. e4 {[%clk 0:03:00.2]} 3... c6 {[%clk 0:02:53.6]}
4. Be3 {[%clk 0:02:58.1]} 4... Nf6 {[%clk 0:02:49.5]} 5. f3 {[%clk 0:02:57.2]}
5... b5 {[%clk 0:02:42.3]} 6. Qd2 {[%clk 0:02:56.6]} 6... Nbd7 {[%clk
0:02:37.9]} 7. O-O-O {[%clk 0:02:53.9]} 7... Nb6 {[%clk 0:02:37.4]} 8. Bd3
{[%clk 0:02:53.5]} 8... Nc4 {[%clk 0:02:34.9]} 9. Bxc4 {[%clk 0:02:48.6]} 9...
bxc4 {[%clk 0:02:35.1]} 10. Qe2 {[%clk 0:02:47.7]} 10... d5 {[%clk 0:02:33.8]}
11. e5 {[%clk 0:02:47.5]} 11... Nd7 {[%clk 0:02:33.3]} 12. e6 {[%clk 0:02:42.6]}
12... fxe6 {[%clk 0:02:32.5]} 13. h4 {[%clk 0:02:41.8]} 13... Nf6 {[%clk
0:02:31]} 14. Bf4 {[%clk 0:02:36.1]} 14... Nh5 {[%clk 0:02:25.8]} 15. Be5 {[%clk
0:02:35.3]} 15... Bh6+ {[%clk 0:02:25.2]} 16. Kb1 {[%clk 0:02:33.3]} 16... Bg7
{[%clk 0:02:20.2]} 17. g4 {[%clk 0:02:30.7]} 17... Nf6 {[%clk 0:02:14.1]} 18. h5
{[%clk 0:02:29.3]} 18... g5 {[%clk 0:02:06.8]} 19. h6 {[%clk 0:02:24]} 19... Bf8
{[%clk 0:02:06.2]} 20. Na4 {[%clk 0:02:17.5]} 20... Rg8 {[%clk 0:02:04.6]} 21.
Nc5 {[%clk 0:02:15.1]} 21... Rg6 {[%clk 0:02:01.3]} 22. c3 {[%clk 0:02:05.4]}
22... Nd7 {[%clk 0:01:57.5]} 23. Nxd7 {[%clk 0:01:48.9]} 23... Bxd7 {[%clk
0:01:55.7]} 24. f4 {[%clk 0:01:49.2]} 24... gxf4 {[%clk 0:01:50.8]} 25. Nh3
{[%clk 0:01:41.7]} 25... Bxh6 {[%clk 0:01:24.2]} 26. g5 {[%clk 0:01:40.4]} 26...
Bf8 {[%clk 0:01:02.7]} 27. Nxf4 {[%clk 0:01:39.3]} 27... Qb6 {[%clk 0:01:02.6]}
28. Nxg6 {[%clk 0:01:32.5]} 28... hxg6 {[%clk 0:01:02.3]} 29. Rh8 {[%clk
0:01:29.3]} 29... O-O-O {[%clk 0:01:02]} 30. Rf1 {[%clk 0:01:28.1]} 1-0